fUST/lending_fUST_20240914
["ID","MTS","AMOUNT","RATE_DAILY","PERIOD"]
[338133396,1726288320827,-500.0,0.00032876,2]
[338133397,1726288320836,-500.0,0.00032876,2]
[338133398,1726288320847,-500.0,0.00032876,2]
[338133399,1726288320856,-500.0,0.00032876,2]
[338133400,1726288320865,-500.0,0.00032876,2]
[338133401,1726288320875,-500.0,0.00032876,2]
[338133402,1726288320884,-500.0,0.00032876,2]
[338133403,1726288320894,-500.0,0.00032876,2]
[338133404,1726288320903,-500.0,0.00032876,2]
[338133405,1726288320912,-500.0,0.00032876,2]
[338133406,1726288320922,-500.0,0.00032876,2]
[338133407,1726288320931,-500.0,0.00032876,2]
[338133408,1726288320940,-500.0,0.00032876,2]
[338133409,1726288320950,-500.0,0.00032876,2]
[338133410,1726288320960,-500.0,0.00032876,2]
[338133411,1726288320969,-500.0,0.00032876,2]
[338133412,1726288320978,-500.0,0.00032876,2]
[338133413,1726288320987,-500.0,0.00032876,2]
[338133414,1726288320996,-500.0,0.00032876,2]
[338133415,1726288321006,-500.0,0.00032876,2]
[338133416,1726288321015,-500.0,0.00032876,2]
[338133417,1726288321024,-500.0,0.00032876,2]
[338133418,1726288321034,-500.0,0.00032876,2]
[338133419,1726288321043,-500.0,0.00032876,2]
[338133420,1726288321052,-500.0,0.00032876,2]
[338133421,1726288321061,-500.0,0.00032876,2]
[338133422,1726288321071,-500.0,0.00032876,2]
[338133423,1726288321080,-518.0010765,0.00032876,2]
[338133424,1726288321089,-500.0,0.00032876,2]
[338133425,1726288321098,-499.99999999,0.00032876,2]
[338133426,1726288321108,-209.69030987,0.00032876,2]
[338133427,1726288321117,-1220.6989789,0.00032876,2]
[338133428,1726288321126,-1220.6989789,0.00032876,2]
[338133429,1726288321136,-1220.6989789,0.00032876,2]
[338133430,1726288321146,-1220.6989789,0.00032876,2]
[338133431,1726288321154,-1220.6989789,0.00032876,2]
[338133432,1726288321164,-1220.6989789,0.00032876,2]
[338133433,1726288321174,-1220.6989789,0.00032876,2]
[338133434,1726288321183,-1220.6989789,0.00032876,2]
[338133435,1726288321192,-1220.6989789,0.00032876,2]
[338133436,1726288321201,-1281.73392784,0.00032876,2]
[338133437,1726288321212,-1281.73392784,0.00032876,2]
[338133438,1726288321222,-1281.73392784,0.00032876,2]
[338133439,1726288321232,-1281.73392784,0.00032876,2]
[338133440,1726288321241,-500.0,0.00032876,2]
[338133441,1726288321251,-500.0,0.00032876,2]
[338133442,1726288321260,-500.0,0.00032876,2]
[338133443,1726288321270,-500.0,0.00032876,2]
[338133444,1726288321279,-500.0,0.00032876,2]
[338133445,1726288321288,-596.74221271,0.00032876,2]
[338133446,1726288321298,-500.0,0.00032876,2]
[338133447,1726288321308,-188.93085964,0.00032876,2]
[338133448,1726288321318,-916.19076138,0.00032876,2]
[338133449,1726288321329,-315.98554874,0.00032876,2]
[338133450,1726288321341,-225.88810949,0.00032876,2]
[338133451,1726288321353,-500.0,0.00032876,2]
[338133452,1726288321365,-588.7640701,0.00032876,2]
[338133453,1726288321375,-434.85025638,0.00032876,2]
[338133454,1726288321387,-1000.0,0.00032876,30]
[338133455,1726288321398,-1000.96599654,0.00032876,30]
[338133456,1726288321409,-500.0,0.00032876,2]
[338133457,1726288321420,-500.0,0.00032876,2]
[338133458,1726288321429,-500.0,0.00032876,2]
[338133459,1726288321441,-500.0,0.00032876,2]
[338133460,1726288321452,-500.0,0.00032876,2]
[338133461,1726288321463,-500.0,0.00032876,2]
[338133462,1726288321474,-500.0,0.00032876,2]
[338133463,1726288321485,-500.0,0.00032876,2]
[338133464,1726288321494,-500.0,0.00032876,2]
[338133465,1726288321505,-500.0,0.00032876,2]
[338133466,1726288321516,-500.0,0.00032876,2]
[338133467,1726288321526,-500.0,0.00032876,2]
[338133468,1726288321535,-500.0,0.00032876,2]
[338133469,1726288321545,-500.0,0.00032876,2]
[338133470,1726288321555,-500.0,0.00032876,2]
[338133471,1726288321564,-500.0,0.00032876,2]
[338133472,1726288321576,-500.0,0.00032876,2]
[338133473,1726288321587,-500.0,0.00032876,2]
[338133474,1726288321596,-500.0,0.00032876,2]
[338133475,1726288321606,-500.0,0.00032876,2]
[338133476,1726288321616,-500.0,0.00032876,2]
[338133477,1726288321627,-373.02947976,0.00032876,2]
[338133478,1726288321637,-1000.0,0.00032876,120]
[338133479,1726288321646,-1000.0,0.00032876,2]
[338133480,1726288321655,-1000.0,0.00032876,2]
[338133481,1726288321665,-1000.0,0.00032876,2]
[338133482,1726288321674,-1025.23988888,0.00032876,2]
[338133483,1726288321683,-5047.5,0.00032876,120]
[338133484,1726288321692,-5047.5,0.00032876,120]
[338133485,1726288321702,-5047.5,0.00032876,120]
[338133486,1726288321712,-5047.5,0.00032876,120]
[338133487,1726288321721,-5047.5,0.00032876,120]
[338133488,1726288321732,-5047.5,0.00032876,120]
[338133489,1726288321742,-5047.5,0.00032876,120]
[338133490,1726288321752,-5047.5,0.00032876,120]
[338133491,1726288321761,-5047.5,0.00032876,120]
[338133492,1726288321771,-5047.5,0.00032876,120]
[338133493,1726288321779,-5047.5,0.00032876,120]
[338133494,1726288321788,-5047.5,0.00032876,120]
[338133495,1726288321798,-5047.5,0.00032876,120]
[338133496,1726288321809,-5047.5,0.00032876,120]
[338133497,1726288321820,-5047.5,0.00032876,120]
[338133498,1726288321830,-5047.5,0.00032876,120]
[338133499,1726288321841,-5047.5,0.00032876,120]
[338133500,1726288321854,-5047.5,0.00032876,120]
[338133501,1726288321866,-5047.5,0.00032876,120]
[338133502,1726288321878,-5047.5,0.00032876,120]
[338133503,1726288321888,-5047.5,0.00032876,120]
[338133504,1726288321899,-5047.5,0.00032876,120]
[338133505,1726288321910,-5047.5,0.00032876,120]
[338133506,1726288321922,-5047.53637218,0.00032876,120]
[338133507,1726288321931,-500.0,0.00032876,2]
[338133508,1726288321940,-500.0,0.00032876,2]
[338133509,1726288321949,-500.0,0.00032876,2]
[338133510,1726288321960,-500.0,0.00032876,2]
[338133511,1726288321978,-500.0,0.00032876,2]
[338133512,1726288321988,-500.0,0.00032876,2]
[338133513,1726288321997,-177.62949637,0.00032876,2]
[338133514,1726288322008,-409.376735,0.00032877,14]
[338133515,1726288322019,-409.376735,0.00032877,14]
[338133516,1726288322030,-409.376735,0.00032877,14]
[338133517,1726288322040,-409.376735,0.00032877,14]
[338133518,1726288322050,-409.376735,0.00032877,14]
[338133519,1726288322061,-409.376735,0.00032877,14]
[338133520,1726288322071,-409.376735,0.00032877,14]
[338133521,1726288322092,-409.376735,0.00032877,14]
[338133522,1726288322102,-409.376735,0.00032877,14]
[338133523,1726288322113,-409.376735,0.00032877,14]
[338133524,1726288322123,-409.376735,0.00032877,14]
[338133525,1726288322133,-409.376735,0.00032877,14]
[338133526,1726288322142,-409.376735,0.00032877,14]
[338133527,1726288322152,-409.376735,0.00032877,14]
[338133528,1726288322163,-409.376735,0.00032877,14]
[338133529,1726288322172,-409.376735,0.00032877,14]
[338133530,1726288322182,-409.376735,0.00032877,14]
[338133531,1726288322192,-409.376735,0.00032877,14]
[338133532,1726288322202,-409.376735,0.00032877,14]
[338133533,1726288322215,-409.376729,0.00032877,14]
[338133534,1726288322224,-23266.9434274,0.00032877,2]
[338133535,1726288322235,-244.04495146,0.00032877,2]
[338133536,1726288322244,-300.75730702,0.0003288,7]
[338133537,1726288322254,-300.75730702,0.0003288,7]
[338133538,1726288322264,-300.75730702,0.0003288,7]
[338133539,1726288322273,-300.75730702,0.0003288,7]
[338133540,1726288322282,-300.75730702,0.0003288,7]
[338133541,1726288322292,-300.75730702,0.0003288,7]
[338133542,1726288322301,-300.75730702,0.0003288,7]
[338133543,1726288322311,-300.75730702,0.0003288,7]
[338133544,1726288322321,-300.75730702,0.0003288,7]
[338133545,1726288322331,-300.75730702,0.0003288,7]
[338133546,1726288322341,-300.75730702,0.0003288,7]
[338133547,1726288322352,-300.75730702,0.0003288,7]
[338133548,1726288322364,-300.75730702,0.0003288,7]
[338133549,1726288322374,-300.75730702,0.0003288,7]
[338133550,1726288322385,-300.75730702,0.0003288,7]
[338133551,1726288322396,-300.75730702,0.0003288,7]
[338133552,1726288322408,-300.75730702,0.0003288,7]
[338133553,1726288322419,-300.75730702,0.0003288,7]
[338133554,1726288322430,-300.75730702,0.0003288,7]
[338133555,1726288322440,-301.25,0.0003288,7]
[338133556,1726288322451,-1203.1042281,0.0003288,7]
[338133557,1726288322464,-1203.1042281,0.0003288,7]
[338133558,1726288322475,-1203.1042281,0.0003288,7]
[338133559,1726288322486,-1203.1042281,0.0003288,7]
[338133560,1726288322496,-1203.1042281,0.0003288,7]
[338133561,1726288322508,-1203.1042281,0.0003288,7]
[338133562,1726288322518,-1203.1042281,0.0003288,7]
[338133563,1726288322527,-1203.1042281,0.0003288,7]
[338133564,1726288322539,-1203.1042281,0.0003288,7]
[338133565,1726288322549,-1203.1042281,0.0003288,7]
[338133566,1726288322560,-1203.1042281,0.0003288,7]
[338133567,1726288322571,-1203.1042281,0.0003288,7]
[338133568,1726288322581,-1203.1042281,0.0003288,7]
[338133569,1726288322591,-1203.1042281,0.0003288,7]
[338133570,1726288322602,-1203.1042281,0.0003288,7]
[338133571,1726288322611,-1203.1042281,0.0003288,7]
[338133572,1726288322627,-1203.1042281,0.0003288,7]
[338133573,1726288322638,-1203.1042281,0.0003288,7]
[338133574,1726288322648,-1203.1042281,0.0003288,7]
[338133575,1726288322659,-1203.6,0.0003288,7]
[338133576,1726288322670,-322.66793051,0.0003288,7]
[338133577,1726288322680,-322.66793051,0.0003288,7]
[338133578,1726288322690,-322.66793051,0.0003288,7]
[338133579,1726288322707,-322.66793051,0.0003288,7]
[338133580,1726288322716,-322.66793051,0.0003288,7]
[338133581,1726288322727,-322.66793051,0.0003288,7]
[338133582,1726288322737,-322.66793051,0.0003288,7]
[338133583,1726288322747,-322.66793051,0.0003288,7]
[338133584,1726288322757,-322.66793051,0.0003288,7]
[338133585,1726288322768,-322.66793051,0.0003288,7]
[338133586,1726288322780,-322.66793051,0.0003288,7]
[338133587,1726288322790,-322.66793051,0.0003288,7]
[338133588,1726288322802,-322.66793051,0.0003288,7]
[338133589,1726288322812,-322.66793051,0.0003288,7]
[338133590,1726288322822,-322.66793051,0.0003288,7]
[338133591,1726288322833,-322.66793051,0.0003288,7]
[338133592,1726288322842,-322.66793051,0.0003288,7]
[338133593,1726288322853,-322.66793051,0.0003288,7]
[338133594,1726288322867,-322.66793051,0.0003288,7]
[338133595,1726288322878,-323.16,0.0003288,7]
[338133596,1726288322888,-1290.74672204,0.0003288,7]
[338133597,1726288322899,-1290.74672204,0.0003288,7]
[338133598,1726288322908,-1290.74672204,0.0003288,7]
[338133599,1726288322918,-1290.74672204,0.0003288,7]
[338133600,1726288322928,-1290.74672204,0.0003288,7]
[338133601,1726288322937,-1290.74672204,0.0003288,7]
[338133602,1726288322947,-1290.74672204,0.0003288,7]
[338133603,1726288322958,-1290.74672204,0.0003288,7]
[338133604,1726288322967,-1290.74672204,0.0003288,7]
[338133605,1726288322977,-1290.74672204,0.0003288,7]
[338133606,1726288322988,-1290.74672204,0.0003288,7]
[338133607,1726288322999,-1290.74672204,0.0003288,7]
[338133608,1726288323009,-1290.74672204,0.0003288,7]
[338133609,1726288323019,-1290.74672204,0.0003288,7]
[338133610,1726288323030,-1290.74672204,0.0003288,7]
[338133611,1726288323040,-1290.74672204,0.0003288,7]
[338133612,1726288323049,-1290.74672204,0.0003288,7]
[338133613,1726288323059,-1290.74672204,0.0003288,7]
[338133614,1726288323069,-1290.74672204,0.0003288,7]
[338133615,1726288323079,-1291.24,0.0003288,7]
[338133616,1726288323089,-155.29195794,0.00032932,30]
[338133617,1726288323100,-548.67349232,0.0003299,30]
[338133618,1726288323110,-250.0,0.00033,10]
[338133619,1726288323120,-599.7341285,0.00033,2]
[338133620,1726288323130,-37504.0273891,0.00033,7]
[338133621,1726288323141,-70649.42052783,0.00033,120]
[338133622,1726288323152,-262.0,0.00033,2]
[338133623,1726288323165,-262.0,0.00033,2]
[338133624,1726288323175,-1500.0,0.00033073,7]
[338133625,1726288323185,-349.265991,0.00033165,2]
[338133626,1726288323195,-1400.0,0.00033167,7]
[338133627,1726288323205,-1000.0,0.00033215,7]
[338133628,1726288323216,-771.0,0.00033248,2]
[338133629,1726288323226,-151.0,0.00033342,120]
[338133630,1726288323236,-778.0,0.00033568,2]
[338133631,1726288323245,-276.516495,0.00033598,2]
[338133632,1726288323256,-1400.0,0.00033619,7]
[338133633,1726288323265,-500.0,0.00033767,7]
[338133634,1726288323274,-150.0,0.000338,120]
[338133635,1726288323284,-1685.362952,0.000338,25]
[338133636,1726288323294,-1000.0,0.00033828,7]
[338133637,1726288323304,-1000.0,0.00033835,120]
[338133638,1726288323313,-501.31317357,0.00033841,7]
[338133639,1726288323323,-155.29195794,0.00033863,30]
[338133640,1726288323333,-240.0,0.00034,10]
[338133641,1726288323342,-529.44526595,0.00034,5]
[338133642,1726288323352,-150.0,0.00034,120]
[338133643,1726288323361,-500.0,0.00034089,7]
[338133644,1726288323371,-500.0,0.00034266,7]
[338133645,1726288323380,-1000.0,0.000343,25]
[338133646,1726288323390,-1000.0,0.00034332,7]
[338133647,1726288323400,-48322.8633,0.00034383,30]
[338133648,1726288323409,-1000.0,0.00034433,7]
[338133649,1726288323418,-500.0,0.00034503,7]
[338133650,1726288323428,-80034.82264094,0.0003451,21]
[338133651,1726288323438,-771.0,0.00034527,2]
[338133652,1726288323447,-771.0,0.00034527,2]
[338133653,1726288323458,-1400.0,0.00034533,7]
[338133654,1726288323467,-1000.0,0.00034582,7]
[338133655,1726288323476,-1296.88967305,0.00034728,12]
[338133656,1726288323486,-500.0,0.00034759,7]
[338133657,1726288323495,-155.29195794,0.00034767,30]
[338133658,1726288323505,-1000.0,0.00034794,120]
[338133659,1726288323514,-1000.0,0.000348,3]
[338133660,1726288323524,-1000.0,0.000348,25]
[338133661,1726288323533,-1000.0,0.00034967,7]
[338133662,1726288323542,-10420.57653399,0.00035,2]
[338133663,1726288323552,-500.0,0.00035,5]
[338133664,1726288323562,-11972.86255506,0.00035,4]
[338133665,1726288323571,-250.0,0.00035,10]
[338133666,1726288323581,-395.16312414,0.00035,2]
[338133667,1726288323590,-521.0,0.00035,10]
[338133668,1726288323600,-24836.86,0.00035,14]
[338133669,1726288323610,-3947.0,0.00035,5]
[338133670,1726288323623,-300.0,0.00035,2]
[338133671,1726288323632,-300.58551851,0.00035,120]
[338133672,1726288323642,-1199.28444926,0.00035,120]
[338133673,1726288323651,-11619.62682161,0.00035,15]
[338133674,1726288323660,-300.0,0.00035,2]
[338133675,1726288323872,-2575.0,0.00035,30]
[338133676,1726288323882,-1500.0,0.00035001,7]
[338133677,1726288323892,-151.0,0.00035014,120]
[338133678,1726288323902,-500.0,0.00035023,7]
[338133679,1726288323912,-5000.0,0.00035106,5]
[338133680,1726288323922,-1000.0,0.000353,25]
[338133681,1726288323931,-500.0,0.00035372,7]
[338133682,1726288323940,-500.0,0.00035427,7]
[338133683,1726288323950,-1400.0,0.00035475,7]
[338133684,1726288323959,-771.0,0.00035486,2]
[338133685,1726288323968,-1000.0,0.00035616,118]
[338133686,1726288323978,-1000.0,0.00035616,118]
[338133687,1726288323987,-1000.0,0.00035616,118]
[338133688,1726288324007,-1000.0,0.00035616,118]
[338133689,1726288324018,-1000.0,0.00035616,118]
[338133690,1726288324028,-1030.35151965,0.00035616,118]
[338133691,1726288324038,-331.562465,0.00035616,120]
[338133692,1726288324050,-1262.4034073,0.00035616,7]
[338133693,1726288324060,-79186.4,0.00035616,3]
[338133694,1726288324070,-65988.67,0.00035616,3]
[338133695,1726288324080,-1500.0,0.00035621,7]
[338133696,1726288324090,-524.0,0.00035667,2]
[338133697,1726288324100,-155.29195794,0.00035699,30]
[338133698,1726288324111,-1000.0,0.00035753,120]
[338133699,1726288324121,-1400.0,0.00035764,7]
[338133700,1726288324131,-1000.0,0.00035772,7]
[338133701,1726288324141,-1000.0,0.000358,25]
[338133702,1726288324151,-771.0,0.00035805,2]
[338133703,1726288324162,-29400.0,0.00036,30]
[338133704,1726288324172,-250.0,0.00036,10]
[338133705,1726288324181,-11705.97341423,0.00036,60]
[338133706,1726288324191,-262.0,0.00036,2]
[338133707,1726288324201,-262.0,0.00036,2]
[338133708,1726288324212,-262.0,0.00036,2]
[338133709,1726288324222,-1500.0,0.00036072,7]
[338133710,1726288324232,-258.99347274,0.0003624,2]
[338133711,1726288324242,-1500.0,0.00036275,7]
[338133712,1726288324251,-1000.0,0.000363,25]
[338133713,1726288324262,-1000.0,0.0003634,2]
[338133714,1726288324272,-1000.0,0.00036354,2]
[338133715,1726288324282,-530.0737,0.00036383,30]
[338133716,1726288324292,-267.15093,0.000364,7]
[338133717,1726288324302,-150.112233,0.000364,7]
[338133718,1726288324312,-150.112233,0.000364,9]
[338133719,1726288324322,-500.0,0.0003643,7]
[338133720,1726288324332,-771.0,0.00036445,2]
[338133721,1726288324342,-151.55517376,0.000365,120]
[338133722,1726288324351,-10000.0,0.000365,30]
[338133723,1726288324362,-1000.0,0.0003652,2]
[338133724,1726288324372,-1000.0,0.00036539,2]
[338133725,1726288324383,-155.29195794,0.00036603,30]
[338133726,1726288324393,-1400.0,0.00036614,7]
[338133727,1726288324402,-151.0,0.00036685,120]
[338133728,1726288324412,-1000.0,0.00036688,2]
[338133729,1726288324423,-1000.0,0.00036712,120]
[338133730,1726288324433,-500.0,0.00036713,7]
[338133731,1726288324442,-500.0,0.00036767,7]
[338133732,1726288324452,-1000.0,0.000368,25]
[338133733,1726288324462,-1500.0,0.0003681,7]
[338133734,1726288324472,-1000.0,0.00036844,7]
[338133735,1726288324482,-1400.0,0.00036885,7]
[338133736,1726288324492,-1000.0,0.00036941,2]
[338133737,1726288324502,-1000.0,0.00036997,2]
[338133738,1726288324512,-1000.0,0.00037,2]
[338133739,1726288324522,-250.0,0.00037,10]
[338133740,1726288324532,-2465.1015109,0.00037,7]
[338133741,1726288324542,-1000.0,0.00037,120]
[338133742,1726288324551,-2705.41380132,0.00037012,7]
[338133743,1726288324561,-1000.0,0.0003703,2]
[338133744,1726288324571,-1000.0,0.00037038,2]
[338133745,1726288324581,-1000.0,0.00037044,2]
[338133746,1726288324591,-771.0,0.00037084,2]
[338133747,1726288324601,-1000.0,0.00037095,2]
[338133748,1726288324610,-799.98714967,0.00037121,2]
[338133749,1726288324622,-1000.0,0.00037136,7]
[338133750,1726288324632,-1000.0,0.00037162,2]
[338133751,1726288324642,-1000.0,0.00037179,2]
[338133752,1726288324652,-1000.0,0.00037213,2]
[338133753,1726288324662,-1000.0,0.00037228,2]
[338133754,1726288324672,-709.04893223,0.00037264,2]
[338133755,1726288324682,-1000.0,0.000373,25]
[338133756,1726288324691,-1000.0,0.00037349,2]
[338133757,1726288324701,-771.0,0.00037404,2]
[338133758,1726288324712,-1000.0,0.00037404,2]
[338133759,1726288324722,-300.2284704,0.00037438,2]
[338133760,1726288324731,-153.7118301,0.00037449,2]
[338133761,1726288324741,-1003.62958177,0.00037476,2]
[338133762,1726288324750,-10000.0,0.000375,40]
[338133763,1726288324760,-155.29195794,0.00037534,30]
[338133764,1726288324769,-1500.0,0.00037535,7]
[338133765,1726288324779,-1000.0,0.00037546,2]
[338133766,1726288324788,-1500.0,0.0003755,7]
[338133767,1726288324798,-151.37237438,0.00037556,2]
[338133768,1726288324807,-1400.0,0.00037603,7]
[338133769,1726288324818,-1000.0,0.00037636,2]
[338133770,1726288324828,-1400.0,0.00037643,7]
[338133771,1726288324837,-813.20704892,0.00037671,120]
[338133772,1726288324848,-217.8456015,0.00037685,2]
[338133773,1726288324859,-176.25145821,0.000377,2]
[338133774,1726288324869,-1500.0,0.00037709,7]
[338133775,1726288324879,-1500.0,0.00037732,7]
[338133776,1726288324888,-1000.0,0.00037736,2]
[338133777,1726288324898,-617.50764418,0.00037768,7]
[338133778,1726288324908,-1000.0,0.000378,25]
[338133779,1726288324918,-1000.0,0.00037872,2]
[338133780,1726288324928,-1750.15,0.000379,30]
[338133781,1726288324937,-1000.0,0.00037905,7]
[338133782,1726288324947,-1000.0,0.00037941,30]
[338133783,1726288324956,-1000.0,0.00037975,2]
[338133784,1726288324965,-1000.0,0.00038,120]
[338133785,1726288324975,-411.0022209,0.00038,60]
[338133786,1726288324984,-344.67583632,0.00038,10]
[338133787,1726288324994,-500.96,0.00038,14]
[338133788,1726288325004,-200000.0,0.00038,7]
[338133789,1726288325013,-250.0,0.00038,10]
[338133790,1726288325023,-233.30192914,0.00038,120]
[338133791,1726288325032,-150.0,0.00038,2]
[338133792,1726288325041,-829.6435469,0.0003801,30]
[338133793,1726288325050,-411.0022209,0.00038011,30]
[338133794,1726288325060,-500.0,0.00038016,5]
[338133795,1726288325069,-2000.0,0.00038021,30]
[338133796,1726288325078,-483.957,0.00038021,30]
[338133797,1726288325087,-100618.58815901,0.00038023,5]
[338133798,1726288325097,-50627.50822937,0.00038023,2]
[338133799,1726288325106,-6167.26093861,0.00038023,7]
[338133800,1726288325115,-16097.85839918,0.00038023,2]
[338133801,1726288325124,-200.0,0.00038023,14]
[338133802,1726288325134,-3017.37891221,0.00038023,2]
[338133803,1726288325144,-792.05606509,0.00038023,2]
[338133804,1726288325153,-1183.247975,0.00038023,2]
[338133805,1726288325163,-1129.68207409,0.00038023,2]
[338133806,1726288325173,-1514.58687764,0.00038023,2]
[338133807,1726288325185,-3052.90125349,0.00038023,2]
[338133808,1726288325197,-1017.09534758,0.00038023,2]
[338133809,1726288325208,-903.36410573,0.00038023,2]
[338133810,1726288325218,-83100.47320648,0.00038023,4]
[338133811,1726288325229,-300.0,0.00038023,2]
[338133812,1726288325239,-513.34110447,0.00038023,2]
[338133813,1726288325250,-290.55342438,0.00038023,2]
[338133814,1726288325260,-319.89327268,0.00038023,2]
[338133815,1726288325269,-285.42965175,0.00038023,2]
[338133816,1726288325279,-154.08825746,0.00038023,2]
[338133817,1726288325288,-514.40968922,0.00038023,2]
[338133818,1726288325298,-436.57532136,0.00038023,2]
[338133819,1726288325308,-223.00314503,0.00038023,2]
[338133820,1726288325318,-457.85632232,0.00038023,2]
[338133821,1726288325328,-280197.68369928,0.00038023,7]
[338133822,1726288325502,-501.20243799,0.0001726,2]
[338133823,1726288325513,-211.44756231,0.00038023,7]
[338133827,1726288756264,396.0,0.00037552,30]
[338133829,1726288774418,404.3,0.00028,120]
[338133837,1726289178075,5000.0,0.00037567,30]
[338133838,1726289179019,5000.0,0.00037567,30]
[338133839,1726289179403,5000.0,0.00037567,30]
[338133840,1726289179751,5000.0,0.00037567,30]
[338133841,1726289180081,5000.0,0.00037567,30]
[338133843,1726289180433,5000.0,0.00037567,30]
[338133844,1726289180768,5000.0,0.00037567,30]
[338133845,1726289181116,5000.0,0.00037567,30]
[338133846,1726289181479,5000.0,0.00037567,30]
[338133847,1726289181833,5000.0,0.00037567,30]
[338133848,1726289182172,5000.0,0.00037567,30]
[338133849,1726289182529,5000.0,0.00037567,30]
[338133850,1726289182912,5000.0,0.00037567,30]
[338133851,1726289183224,5000.0,0.00037567,30]
[338133852,1726289183582,5000.0,0.00037567,30]
[338133853,1726289183938,5000.0,0.00037567,30]
[338133854,1726289184291,5000.0,0.00037567,30]
[338133855,1726289184659,5000.0,0.00037567,30]
[338133856,1726289185026,5000.0,0.00037567,30]
[338133857,1726289185390,5000.0,0.00037567,30]
[338133858,1726289185760,5000.0,0.00037567,30]
[338133859,1726289186109,5000.0,0.00037567,30]
[338133860,1726289186485,5000.0,0.00037567,30]
[338133861,1726289186838,5000.0,0.00037567,30]
[338133862,1726289187193,5000.0,0.00037567,30]
[338133863,1726289187559,5000.0,0.00037567,30]
[338133864,1726289187896,5000.0,0.00037567,30]
[338133865,1726289188266,5000.0,0.00037567,30]
[338133866,1726289188628,5000.0,0.00037567,30]
[338133867,1726289189004,5000.0,0.00037567,30]
[338133868,1726289189368,5000.0,0.00037567,30]
[338133869,1726289189741,5000.0,0.00037567,30]
[338133870,1726289190097,5000.0,0.00037567,30]
[338133871,1726289190426,5000.0,0.00037567,30]
[338133872,1726289190792,5000.0,0.00037567,30]
[338133873,1726289191246,5000.0,0.00037567,30]
[338133874,1726289191547,5000.0,0.00037567,30]
[338133875,1726289191905,5000.0,0.00037567,30]
[338133876,1726289192263,5000.0,0.00037567,30]
[338133877,1726289204242,2819.98,0.00037567,30]
[338133879,1726289229398,1127.35,0.00037567,30]
[338133880,1726289263861,500.0,0.00037567,30]
[338133881,1726289264026,500.0,0.00037567,30]
[338133882,1726289264060,500.0,0.00037567,30]
[338133883,1726289264209,500.0,0.00037567,30]
[338133884,1726289264411,500.0,0.00037567,30]
[338133885,1726289264483,502.53148546,0.00037567,30]
[338133886,1726289264684,500.0,0.00037567,30]
[338133887,1726289264926,500.0,0.00037567,30]
[338133888,1726289265189,500.0,0.00037567,30]
[338133889,1726289265985,500.0,0.00037567,30]
[338133890,1726289266258,500.0,0.00037567,30]
[338133891,1726289266351,501.3416077,0.00037567,30]
[338133892,1726289266482,500.0,0.00037567,30]
[338133893,1726289266708,500.0,0.00037567,30]
[338133894,1726289266763,500.0,0.00037567,30]
[338133895,1726289266959,500.0,0.00037567,30]
[338133896,1726289267111,500.0,0.00037567,30]
[338133897,1726289267203,500.0,0.00037567,30]
[338133898,1726289267374,296.44281878,0.00037567,30]
[338133899,1726289267456,500.0,0.00037567,30]
[338133900,1726289267755,464.02,0.00037567,30]
[338133901,1726289269273,500.0,0.00037621,30]
[338133902,1726289269302,500.0,0.00037621,30]
[338133903,1726289269540,500.0,0.00037621,30]
[338133904,1726289269635,500.0,0.00037621,30]
[338133905,1726289269763,500.0,0.00037621,30]
[338133906,1726289269822,500.0,0.00037621,30]
[338133907,1726289270026,500.0,0.00037621,30]
[338133908,1726289270057,509.91603352,0.00037621,30]